Workbook

Sheet 記入例
A1: 御 請 求 書
V2: 1 | AA2: ／ | AE2: 1
K4: 請求日 | P4: ： | Q4: 0000 | V4: 年 | X4: 00 | AB4: 月 | AD4: 00 | AH4: 日
A6: 千代田建工株式会社 御中
J7: 会社名 | K7: 〇〇〇〇株式会社
J8: 登録番号 | K8: T | L8: 0000000000000
J9: 住所 | K9: 〒 | L9: 000-0000
K10: ○○県○○市○○区○○00-00-00○○ビル
A11: 請求金額合計 | D11: =W32 -> 684000 | J11: 電話番号 | K11: 00-0000-0000
A13: 工事件名 | C13: 令和00年 〇〇〇〇工事 | K13: 千代田建工発注担当者
A14: 施工場所 | C14: ○○県○○市○○区○○ | K14: 氏名 | Q14: 千代田 太郎
I17: 「※」 | J17: は軽減税率対象、「非」は消費税非課税
A19: 日付 | B19: 項目 | J19: 数量 | L19: 単価 | W19: 金額 | AK19: 「数量」欄の選択肢にない単位は、以下に入力して追加可能です（３つまで） | AO19: 消費税区分 | AP19: ※ | AQ19: 非
A20: 0/0 | B20: 〇〇 | J20: 50 | K20: ㎥ | L20: 4000 | W20: =IF(J20="","",J20*L20) -> 200000 | AK20: 数量単位 | AL20: 日 | AO20: 式 | AP20: 組 | AQ20: ㎥ | AR20: ㎡ | AS20: ｍ | AT20: ㎝ | AU20: ｔ | AV20: ㎏ | AW20: 個 | AX20: 本 | AY20: 箱 | AZ20: 枚 | BA20: 台 | BB20: 基 | BC20: ㍑ | BD20: 人 | BE20: 人工
A21: 0/0 | B21: △△ | I21: ※ | J21: 100 | K21: 個 | L21: 500 | W21: =IF(J21="","",J21*L21) -> 50000
A22: 0/0 | B22: □□ | I22: 非 | J22: 10 | K22: 日 | L22: 30000 | W22: =IF(J22="","",J22*L22) -> 300000
A23: 0/0 | B23: ◇◇ | J23: 1 | K23: 式 | L23: 100000 | W23: =IF(J23="","",J23*L23) -> 100000
W24: =IF(J24="","",J24*L24) -> 
A26: 税抜請求金額合計 | W26: =SUM(W20:AI25) -> 650000
I28: 税抜課税対象金額 | L28: 消費税額 | W28: 消費税込金額
E29: 10％課税対象合計 | I29: =SUMIF(I20:I25,"",W20:W25) -> 300000 | L29: =ROUNDDOWN(I29*10%,0) -> 30000 | W29: =+I29+L29 -> 330000
E30: 08％課税対象合計 | I30: =SUMIF(I20:I25,"※",W20:W25) -> 50000 | L30: =ROUNDDOWN(I30*8%,0) -> 4000 | W30: =+I30+L30 -> 54000
E31: 非課税合計 | I31: =SUMIF(I20:I25,"非",W20:W25) -> 300000 | L31: ― | W31: =+I31 -> 300000
I32: =SUM(I29:K31) -> 650000 | L32: =SUM(L29:V31) -> 34000 | W32: =SUM(W29:AI31) -> 684000
A34: 千代田建工社内処理欄
C35: 受付印 | L35: 社内確認
F36: 工事番号 | I36: ―
F38: 処理区分
C41: ※立替金処理明細
C42: 立替対象先 | I42: 課税対象金額 | L42: 消費税 | X42: 消費税込金額
C44: 消費税10％課税対象
C45: 消費税08％課税対象
C46: 非課税相当対象
A47: 御 請 求 書
V48: 1 | AA48: ／ | AE48: 1
K50: 請求日 | P50: ： | Q50: 0000 | V50: 年 | X50: 00 | AB50: 月 | AD50: 00 | AH50: 日
A52: 千代田建工株式会社 御中
J53: 会社名 | K53: 〇〇〇〇株式会社
J54: 登録番号 | K54: T | L54: 0000000000000
J55: 住所 | K55: 〒 | L55: 000-0000
K56: ○○県○○市○○区○○00-00-00○○ビル
A57: 請求金額合計 | D57: =W78 -> 684000 | J57: 電話番号 | K57: 00-0000-0000
A59: 工事件名 | C59: 令和00年 〇〇〇〇工事 | K59: 千代田建工発注担当者
A60: 施工場所 | C60: ○○県○○市○○区○○ | K60: 氏名 | Q60: 千代田 太郎
I63: 「※」 | J63: は軽減税率対象、「非」は消費税非課税
A65: 日付 | B65: 項目 | J65: 数量 | L65: 単価 | W65: 金額
A66: 0/0 | B66: 〇〇 | J66: 50 | K66: ㎥ | L66: 4000 | W66: =IF(J66="","",J66*L66) -> 200000
A67: 0/0 | B67: △△ | I67: ※ | J67: 100 | K67: 個 | L67: 500 | W67: =IF(J67="","",J67*L67) -> 50000
A68: 0/0 | B68: □□ | I68: 非 | J68: 10 | K68: 日 | L68: 30000 | W68: =IF(J68="","",J68*L68) -> 300000
A69: 0/0 | B69: ◇◇ | J69: 1 | K69: 式 | L69: 100000 | W69: =IF(J69="","",J69*L69) -> 100000
A72: 税抜請求金額合計 | W72: =SUM(W66:AI71) -> 650000
I74: 税抜課税対象金額 | L74: 消費税額 | W74: 消費税込金額
E75: 10％課税対象合計 | I75: =SUMIF(I66:I71,"",W66:W71) -> 300000 | L75: =ROUNDDOWN(I75*10%,0) -> 30000 | W75: =+I75+L75 -> 330000
E76: 08％課税対象合計 | I76: =SUMIF(I66:I71,"※",W66:W71) -> 50000 | L76: =ROUNDDOWN(I76*8%,0) -> 4000 | W76: =+I76+L76 -> 54000
E77: 非課税合計 | I77: =SUMIF(I66:I71,"非",W66:W71) -> 300000 | L77: ― | W77: =+I77 -> 300000
I78: =SUM(I75:K77) -> 650000 | L78: =SUM(L75:V77) -> 34000 | W78: =SUM(W75:AI77) -> 684000
A80: 千代田建工社内処理欄
C81: 受付印 | L81: 社内確認
F82: 工事番号 | I82: ―
F84: 処理区分
C87: ※立替金処理明細
C88: 立替対象先 | I88: 課税対象金額 | L88: 消費税 | X88: 消費税込金額
C90: 消費税10％課税対象
C91: 消費税08％課税対象
C92: 非課税相当対象
A93: 御 請 求 書
V94: 1 | AA94: ／ | AE94: 1
K96: 請求日 | P96: ： | Q96: 0000 | V96: 年 | X96: 00 | AB96: 月 | AD96: 00 | AH96: 日
A98: 千代田建工株式会社 御中
J99: 会社名 | K99: 〇〇〇〇株式会社
J100: 登録番号 | K100: T | L100: 0000000000000
J101: 住所 | K101: 〒 | L101: 000-0000
K102: ○○県○○市○○区○○00-00-00○○ビル
A103: 請求金額合計 | D103: =W124 -> 684000 | J103: 電話番号 | K103: 00-0000-0000
A105: 工事件名 | C105: 令和00年 〇〇〇〇工事 | K105: 千代田建工発注担当者
A106: 施工場所 | C106: ○○県○○市○○区○○ | K106: 氏名 | Q106: 千代田 太郎
I109: 「※」 | J109: は軽減税率対象、「非」は消費税非課税
A111: 日付 | B111: 項目 | J111: 数量 | L111: 単価 | W111: 金額
A112: 0/0 | B112: 〇〇 | J112: 50 | K112: ㎥ | L112: 4000 | W112: =IF(J112="","",J112*L112) -> 200000
A113: 0/0 | B113: △△ | I113: ※ | J113: 100 | K113: 個 | L113: 500 | W113: =IF(J113="","",J113*L113) -> 50000
A114: 0/0 | B114: □□ | I114: 非 | J114: 10 | K114: 日 | L114: 30000 | W114: =IF(J114="","",J114*L114) -> 300000
A115: 0/0 | B115: ◇◇ | J115: 1 | K115: 式 | L115: 100000 | W115: =IF(J115="","",J115*L115) -> 100000
A118: 税抜請求金額合計 | W118: =SUM(W112:AI117) -> 650000
I120: 税抜課税対象金額 | L120: 消費税額 | W120: 消費税込金額
E121: 10％課税対象合計 | I121: =SUMIF(I112:I117,"",W112:W117) -> 300000 | L121: =ROUNDDOWN(I121*10%,0) -> 30000 | W121: =+I121+L121 -> 330000
E122: 08％課税対象合計 | I122: =SUMIF(I112:I117,"※",W112:W117) -> 50000 | L122: =ROUNDDOWN(I122*8%,0) -> 4000 | W122: =+I122+L122 -> 54000
E123: 非課税合計 | I123: =SUMIF(I112:I117,"非",W112:W117) -> 300000 | L123: ― | W123: =+I123 -> 300000
I124: =SUM(I121:K123) -> 650000 | L124: =SUM(L121:V123) -> 34000 | W124: =SUM(W121:AI123) -> 684000
A126: 千代田建工社内処理欄
C127: 受付印 | L127: 社内確認
F128: 工事番号 | I128: ―
F130: 処理区分
C133: ※立替金処理明細
C134: 立替対象先 | I134: 課税対象金額 | L134: 消費税 | X134: 消費税込金額
C136: 消費税10％課税対象
C137: 消費税08％課税対象
C138: 非課税相当対象

Sheet 請求書
A1: 御 請 求 書 | AK1: ver1.0.5
V2: 1 | AA2: ／ | AE2: 1
A4: 未記入（黄色セル）の項目があります | K4: 請求日 | P4: ： | V4: 年 | AB4: 月 | AH4: 日
A6: 千代田建工株式会社 御中
J7: 会社名
J8: 登録番号 | K8: T
J9: 住所 | K9: 〒
A11: 請求金額合計 | D11: =W32 -> 0 | J11: 電話番号
A13: 工事件名 | K13: 千代田建工発注担当者
A14: 施工場所 | K14: 氏名
I17: 「※」 | J17: は軽減税率対象、「非」は消費税非課税
A19: 日付 | B19: 項目 | J19: 数量 | L19: 単価 | W19: 金額 | AK19: 「数量」欄の選択肢にない単位は、以下に入力して追加可能です（３つまで） | AO19: 消費税区分 | AP19: ※ | AQ19: 非
W20: =IF(J20="","",J20*L20) ->  | AK20: 数量単位 | AO20: 式 | AP20: 組 | AQ20: ㎥ | AR20: ㎡ | AS20: ｍ | AT20: ㎝ | AU20: ｔ | AV20: ㎏ | AW20: 個 | AX20: 本 | AY20: 箱 | AZ20: 枚 | BA20: 台 | BB20: 基 | BC20: ㍑ | BD20: 人 | BE20: 人工
W21: =IF(J21="","",J21*L21) -> 
W22: =IF(J22="","",J22*L22) -> 
W23: =IF(J23="","",J23*L23) -> 
W25: =IF(J25="","",J25*L25) -> 
A26: 税抜請求金額合計 | W26: =SUM(W20:AI25) -> 0
I28: 税抜課税対象金額 | L28: 消費税額 | W28: 消費税込金額
E29: 10％課税対象合計 | I29: =SUMIF(I20:I25,"",W20:W25) -> 0 | L29: =ROUNDDOWN(I29*10%,0) -> 0 | W29: =+I29+L29 -> 0
E30: 08％課税対象合計 | I30: =SUMIF(I20:I25,"※",W20:W25) -> 0 | L30: =ROUNDDOWN(I30*8%,0) -> 0 | W30: =+I30+L30 -> 0
E31: 非課税合計 | I31: =SUMIF(I20:I25,"非",W20:W25) -> 0 | L31: ― | W31: =+I31 -> 0
I32: =SUM(I29:K31) -> 0 | L32: =SUM(L29:V31) -> 0 | W32: =SUM(W29:AI31) -> 0
A34: 千代田建工社内処理欄
C35: 受付印 | L35: 社内確認
F36: 工事番号 | I36: ―
F38: 処理区分
C41: ※立替金処理明細
C42: 立替対象先 | I42: 課税対象金額 | L42: 消費税 | X42: 消費税込金額
C44: 消費税10％課税対象
C45: 消費税08％課税対象
C46: 非課税相当対象
A47: 御 請 求 書
V48: =V2 -> 1 | AA48: ／ | AE48: =AE2 -> 1
K50: 請求日 | P50: ： | Q50: =IF($Q$4<>"",$Q$4,"") ->  | V50: 年 | X50: =IF($X$4<>"",$X$4,"") ->  | AB50: 月 | AD50: =IF($AD$4<>"",$AD$4,"") ->  | AH50: 日
A52: 千代田建工株式会社 御中
J53: 会社名 | K53: =IF($K$7<>"",$K$7,"") -> 
J54: 登録番号 | K54: T | L54: =IF($L$8<>"",$L$8,"") -> 
J55: 住所 | K55: 〒 | L55: =IF($L$9<>"",$L$9,"") -> 
K56: =IF($K$10<>"",$K$10,"") -> 
A57: 請求金額合計 | D57: =W78 -> 0 | J57: 電話番号 | K57: =IF($K$11<>"",$K$11,"") -> 
A59: 工事件名 | C59: =IF($C$13<>"",$C$13,"") ->  | K59: 千代田建工発注担当者
A60: 施工場所 | C60: =IF($C$14<>"",$C$14,"") ->  | K60: 氏名 | Q60: =IF($Q$15<>"",$Q$15,"") -> 
I63: 「※」 | J63: は軽減税率対象、「非」は消費税非課税
A65: 日付 | B65: 項目 | J65: 数量 | L65: 単価 | W65: 金額
A66: =IF($A$20<>"",$A$20,"") ->  | B66: =IF($B$20<>"",$B$20,"") ->  | I66: =IF($I$20<>"",$I$20,"") ->  | J66: =IF($J$20<>"",$J$20,"") ->  | K66: =IF($K$20<>"",$K$20,"") ->  | L66: =IF($L$20<>"",$L$20,"") ->  | W66: =IF($W$20<>"",$W$20,"") -> 
A67: =IF($A$21<>"",$A$21,"") ->  | B67: =IF($B$21<>"",$B$21,"") ->  | I67: =IF($I$21<>"",$I$21,"") ->  | J67: =IF($J$21<>"",$J$21,"") ->  | K67: =IF($K$21<>"",$K$21,"") ->  | L67: =IF($L$21<>"",$L$21,"") ->  | W67: =IF($W$21<>"",$W$21,"") -> 
A68: =IF($A$22<>"",$A$22,"") ->  | B68: =IF($B$22<>"",$B$22,"") ->  | I68: =IF($I$22<>"",$I$22,"") ->  | J68: =IF($J$22<>"",$J$22,"") ->  | K68: =IF($K$22<>"",$K$22,"") ->  | L68: =IF($L$22<>"",$L$22,"") ->  | W68: =IF($W$22<>"",$W$22,"") -> 
A69: =IF($A$23<>"",$A$23,"") ->  | B69: =IF($B$23<>"",$B$23,"") ->  | I69: =IF($I$23<>"",$I$23,"") ->  | J69: =IF($J$23<>"",$J$23,"") ->  | K69: =IF($K$23<>"",$K$23,"") ->  | L69: =IF($L$23<>"",$L$23,"") ->  | W69: =IF($W$23<>"",$W$23,"") -> 
A70: =IF($A$24<>"",$A$24,"") ->  | B70: =IF($B$24<>"",$B$24,"") ->  | I70: =IF($I$24<>"",$I$24,"") ->  | J70: =IF($J$24<>"",$J$24,"") ->  | K70: =IF($K$24<>"",$K$24,"") ->  | L70: =IF($L$24<>"",$L$24,"") ->  | W70: =IF($W$24<>"",$W$24,"") -> 
A71: =IF($A$25<>"",$A$25,"") ->  | B71: =IF($B$25<>"",$B$25,"") ->  | I71: =IF($I$25<>"",$I$25,"") ->  | J71: =IF($J$25<>"",$J$25,"") ->  | K71: =IF($K$25<>"",$K$25,"") ->  | L71: =IF($L$25<>"",$L$25,"") ->  | W71: =IF($W$25<>"",$W$25,"") -> 
A72: =$A$26 -> 税抜請求金額合計 | W72: =SUM(W66:AI71) -> 0
I74: 税抜課税対象金額 | L74: 消費税額 | W74: 消費税込金額
E75: 10％課税対象合計 | I75: =I29 -> 0 | L75: =L29 -> 0 | W75: =W29 -> 0
E76: 08％課税対象合計 | I76: =I30 -> 0 | L76: =L30 -> 0 | W76: =W30 -> 0
E77: 非課税合計 | I77: =I31 -> 0 | L77: ― | W77: =W31 -> 0
I78: =I32 -> 0 | L78: =L32 -> 0 | W78: =W32 -> 0
A80: 千代田建工社内処理欄
C81: 受付印 | L81: 社内確認
F82: 工事番号 | H82: =IF($H$36<>"",$H$36,"") ->  | I82: ― | J82: =IF($J$36<>"",$J$36,"") -> 
F84: 処理区分 | H84: =IF($H$38<>"",$H$38,"") -> 
C87: ※立替金処理明細
C88: 立替対象先 | I88: 課税対象金額 | L88: 消費税 | X88: 消費税込金額
C89: =IF($C$43<>"",$C$43,"") ->  | I89: =IF($I$43<>"",$I$43,"") ->  | L89: =IF($L$43<>"",$L$43,"") ->  | X89: =IF($X$43<>"",$X$43,"") -> 
C90: 消費税10％課税対象 | I90: =IF($I$44<>"",$I$44,"") ->  | L90: =IF($L$44<>"",$L$44,"") ->  | X90: =IF($X$44<>"",$X$44,"") -> 
C91: 消費税08％課税対象 | I91: =IF($I$45<>"",$I$45,"") ->  | L91: =IF($L$45<>"",$L$45,"") ->  | X91: =IF($X$45<>"",$X$45,"") -> 
C92: 非課税相当対象 | I92: =IF($I$46<>"",$I$46,"") ->  | L92: =IF($L$46<>"",$L$46,"") ->  | X92: =IF($X$46<>"",$X$46,"") -> 
A93: 御 請 求 書
V94: =V2 -> 1 | AA94: ／ | AE94: =AE2 -> 1
K96: 請求日 | P96: ： | Q96: =IF(Q50<>"",Q50,"") ->  | V96: 年 | X96: =IF(X50<>"",X50,"") ->  | AB96: 月 | AD96: =IF(AD50<>"",AD50,"") ->  | AH96: 日
A98: 千代田建工株式会社 御中
J99: 会社名 | K99: =IF($K$7<>"",$K$7,"") -> 
J100: 登録番号 | K100: T | L100: =IF($L$8<>"",$L$8,"") -> 
J101: 住所 | K101: 〒 | L101: =IF($L$9<>"",$L$9,"") -> 
K102: =IF($K$10<>"",$K$10,"") -> 
A103: 請求金額合計 | D103: =W124 -> 0 | J103: 電話番号 | K103: =IF($K$11<>"",$K$11,"") -> 
A105: 工事件名 | C105: =IF($C$13<>"",$C$13,"") ->  | K105: 千代田建工発注担当者
A106: 施工場所 | C106: =IF($C$14<>"",$C$14,"") ->  | K106: 氏名 | Q106: =IF($Q$15<>"",$Q$15,"") -> 
I109: 「※」 | J109: は軽減税率対象、「非」は消費税非課税
A111: 日付 | B111: 項目 | J111: 数量 | L111: 単価 | W111: 金額
A112: =IF($A$20<>"",$A$20,"") ->  | B112: =IF($B$20<>"",$B$20,"") ->  | I112: =IF($I$20<>"",$I$20,"") ->  | J112: =IF($J$20<>"",$J$20,"") ->  | K112: =IF($K$20<>"",$K$20,"") ->  | L112: =IF($L$20<>"",$L$20,"") ->  | W112: =IF($W$20<>"",$W$20,"") -> 
A113: =IF($A$21<>"",$A$21,"") ->  | B113: =IF($B$21<>"",$B$21,"") ->  | I113: =IF($I$21<>"",$I$21,"") ->  | J113: =IF($J$21<>"",$J$21,"") ->  | K113: =IF($K$21<>"",$K$21,"") ->  | L113: =IF($L$21<>"",$L$21,"") ->  | W113: =IF($W$21<>"",$W$21,"") -> 
A114: =IF($A$22<>"",$A$22,"") ->  | B114: =IF($B$22<>"",$B$22,"") ->  | I114: =IF($I$22<>"",$I$22,"") ->  | J114: =IF($J$22<>"",$J$22,"") ->  | K114: =IF($K$22<>"",$K$22,"") ->  | L114: =IF($L$22<>"",$L$22,"") ->  | W114: =IF($W$22<>"",$W$22,"") -> 
A115: =IF($A$23<>"",$A$23,"") ->  | B115: =IF($B$23<>"",$B$23,"") ->  | I115: =IF($I$23<>"",$I$23,"") ->  | J115: =IF($J$23<>"",$J$23,"") ->  | K115: =IF($K$23<>"",$K$23,"") ->  | L115: =IF($L$23<>"",$L$23,"") ->  | W115: =IF($W$23<>"",$W$23,"") -> 
A116: =IF($A$24<>"",$A$24,"") ->  | B116: =IF($B$24<>"",$B$24,"") ->  | I116: =IF($I$24<>"",$I$24,"") ->  | J116: =IF($J$24<>"",$J$24,"") ->  | K116: =IF($K$24<>"",$K$24,"") ->  | L116: =IF($L$24<>"",$L$24,"") ->  | W116: =IF($W$24<>"",$W$24,"") -> 
A117: =IF($A$25<>"",$A$25,"") ->  | B117: =IF($B$25<>"",$B$25,"") ->  | I117: =IF($I$25<>"",$I$25,"") ->  | J117: =IF($J$25<>"",$J$25,"") ->  | K117: =IF($K$25<>"",$K$25,"") ->  | L117: =IF($L$25<>"",$L$25,"") ->  | W117: =IF($W$25<>"",$W$25,"") -> 
A118: =$A$26 -> 税抜請求金額合計 | W118: =SUM(W112:AI117) -> 0
I120: 税抜課税対象金額 | L120: 消費税額 | W120: 消費税込金額
E121: 10％課税対象合計 | I121: =I29 -> 0 | L121: =L29 -> 0 | W121: =W29 -> 0
E122: 08％課税対象合計 | I122: =I30 -> 0 | L122: =L30 -> 0 | W122: =W30 -> 0
E123: 非課税合計 | I123: =I31 -> 0 | L123: ― | W123: =W31 -> 0
I124: =I32 -> 0 | L124: =L32 -> 0 | W124: =W32 -> 0
A126: 千代田建工社内処理欄
C127: 受付印 | L127: 社内確認
F128: 工事番号 | H128: =IF($H$36<>"",$H$36,"") ->  | I128: ― | J128: =IF($J$36<>"",$J$36,"") -> 
F130: 処理区分 | H130: =IF($H$38<>"",$H$38,"") -> 
C133: ※立替金処理明細
C134: 立替対象先 | I134: 課税対象金額 | L134: 消費税 | X134: 消費税込金額
C135: =IF($C$43<>"",$C$43,"") ->  | I135: =IF($I$43<>"",$I$43,"") ->  | L135: =IF($L$43<>"",$L$43,"") ->  | X135: =IF($X$43<>"",$X$43,"") -> 
C136: 消費税10％課税対象 | I136: =IF($I$44<>"",$I$44,"") ->  | L136: =IF($L$44<>"",$L$44,"") ->  | X136: =IF($X$44<>"",$X$44,"") -> 
C137: 消費税08％課税対象 | I137: =IF($I$45<>"",$I$45,"") ->  | L137: =IF($L$45<>"",$L$45,"") ->  | X137: =IF($X$45<>"",$X$45,"") -> 
C138: 非課税相当対象 | I138: =IF($I$46<>"",$I$46,"") ->  | L138: =IF($L$46<>"",$L$46,"") ->  | X138: =IF($X$46<>"",$X$46,"") -> 

Sheet 2ページ目以降 (hidden)
A1: 御 請 求 書
V2: =+A45 -> 0 | AA2: ／ | AE2: =請求書!$AE$2 -> 1
K4: 請求日 | P4: ： | Q4: =IF(請求書!$Q$4=0,"",請求書!$Q$4) ->  | V4: 年 | X4: =IF(請求書!$X$4=0,"",請求書!$X$4) ->  | AB4: 月 | AD4: =IF(請求書!$AD$4=0,"",請求書!$AD$4) ->  | AH4: 日
A6: =請求書!$A$6 -> 千代田建工株式会社 御中
J7: 会社名 | K7: =IF(請求書!$K$7=0,"",請求書!$K$7) -> 
J8: 登録番号 | K8: T | L8: =IF(請求書!$L$8=0,"",請求書!$L$8) -> 
J9: 住所 | K9: 〒 | L9: =IF(請求書!$L$9=0,"",請求書!$L$9) -> 
K10: =IF(請求書!$K$10=0,"",請求書!$K$10) -> 
J11: 電話番号 | K11: =IF(請求書!$K$11=0,"",請求書!$K$11) -> 
A13: 工事件名 | C13: =IF(請求書!$C$13=0,"",請求書!$C$13) ->  | K13: 千代田建工発注担当者
A14: 施工場所 | C14: =IF(請求書!$C$14=0,"",請求書!$C$14) ->  | K14: 氏名 | Q14: =IF(請求書!$Q$15=0,"",請求書!$Q$15) -> 
I17: 「※」 | J17: は軽減税率対象、「非」は消費税非課税
A19: 日付 | B19: 項目 | J19: 数量 | L19: 単価 | W19: 金額
W20: =IF(J20="","",J20*L20) -> 
W21: =IF(J21="","",J21*L21) -> 
W45: =SUM(W20:AI44) -> 0
A46: 税抜請求金額合計
A47: 御 請 求 書
V48: =V2 -> 0 | AA48: ／ | AE48: =AE2 -> 1
K50: 請求日 | P50: ： | Q50: =IF(請求書!$Q$4=0,"",請求書!$Q$4) ->  | V50: 年 | X50: =IF(請求書!$X$4=0,"",請求書!$X$4) ->  | AB50: 月 | AD50: =IF(請求書!$AD$4=0,"",請求書!$AD$4) ->  | AH50: 日
A52: =請求書!$A$6 -> 千代田建工株式会社 御中
J53: 会社名 | K53: =IF(請求書!$K$7=0,"",請求書!$K$7) -> 
J54: 登録番号 | K54: T | L54: =IF(請求書!$L$8=0,"",請求書!$L$8) -> 
J55: 住所 | K55: 〒 | L55: =IF(請求書!$L$9=0,"",請求書!$L$9) -> 
K56: =IF(請求書!$K$10=0,"",請求書!$K$10) -> 
J57: 電話番号 | K57: =IF(請求書!$K$11=0,"",請求書!$K$11) -> 
A59: 工事件名 | C59: =IF(請求書!$C$13=0,"",請求書!$C$13) ->  | K59: 千代田建工発注担当者
A60: 施工場所 | C60: =IF(請求書!$C$14=0,"",請求書!$C$14) ->  | K60: 氏名 | Q60: =IF(請求書!$Q$15=0,"",請求書!$Q$15) -> 
I63: 「※」 | J63: は軽減税率対象、「非」は消費税非課税
A65: 日付 | B65: 項目 | J65: 数量 | L65: 単価 | W65: 金額
A66: =IF(A20<>"",A20,"") ->  | I66: =IF(I20<>"",I20,"") ->  | W66: =IF(J66="","",J66*L66) -> 
W80: =IF(J80="","",J80*L80) -> 
W81: =IF(J81="","",J81*L81) -> 
A82: =IF(A37<>"",A37,"") ->  | B82: =IF(B36<>"",B36,"") -> 
A83: =IF(A37<>"",A37,"") -> 
A91: =IF(A45<>"",A45,"") ->  | W91: =W45 -> 0
A92: 税抜請求金額合計 | W92: =IF(W46<>"",W46,"") -> 
A93: 御 請 求 書
V94: =V48 -> 0 | AA94: ／ | AE94: =AE48 -> 1
K96: 請求日 | P96: ： | Q96: =IF(請求書!$Q$4=0,"",請求書!$Q$4) ->  | V96: 年 | X96: =IF(請求書!$X$4=0,"",請求書!$X$4) ->  | AB96: 月 | AD96: =IF(請求書!$AD$4=0,"",請求書!$AD$4) ->  | AH96: 日
A98: =請求書!$A$6 -> 千代田建工株式会社 御中
J99: 会社名 | K99: =IF(請求書!$K$7=0,"",請求書!$K$7) -> 
J100: 登録番号 | K100: T | L100: =IF(請求書!$L$8=0,"",請求書!$L$8) -> 
J101: 住所 | K101: 〒 | L101: =IF(請求書!$L$9=0,"",請求書!$L$9) -> 
K102: =IF(請求書!$K$10=0,"",請求書!$K$10) -> 
J103: 電話番号 | K103: =IF(請求書!$K$11=0,"",請求書!$K$11) -> 
A105: 工事件名 | C105: =IF(請求書!$C$13=0,"",請求書!$C$13) ->  | K105: 千代田建工発注担当者
A106: 施工場所 | C106: =IF(請求書!$C$14=0,"",請求書!$C$14) ->  | K106: 氏名 | Q106: =IF(請求書!$Q$15=0,"",請求書!$Q$15) -> 
I109: 「※」 | J109: は軽減税率対象、「非」は消費税非課税
A111: 日付 | B111: 項目 | J111: 数量 | L111: 単価 | W111: 金額
A112: =IF(A20<>"",A20,"") ->  | I112: =IF(I20<>"",I20,"") ->  | W112: =IF(J112="","",J112*L112) -> 
W113: =IF(J113="","",J113*L113) -> 
A137: =IF(A45<>"",A45,"") ->  | W137: =W45 -> 0
A138: 税抜請求金額合計 | W138: =IF(W46<>"",W46,"") -> 
